Cogmind - Beta 15 @@@ ROGUE MODE // 2025.05.30 @ 12:24:02 Player: Polariusz Result: Destroyed by G-47 Trooper with Particle Gun Performance ------------- Evolutions (0) 0 Regions Visited (2) 400 Robots Destroyed (4) 20 Value Destroyed (103) 103 Prototype IDs (0) 0 Alien Tech Used (0) 0 Bonus (0) 0 TOTAL SCORE: 523 Bonus ------- None Cogmind --------- Core Integrity 0/250 Matter 300/300 Energy 125/125 System Corruption 0% Temperature Cool (9) Movement Treading (160) Location -10/Mines Parts ------- > --- POWER (1) -------- Light Ion Engine > --- PROPULSION (2) --- Light Treads Light Treads > --- UTILITY (2) ------ Small Storage Unit Improved Light Armor Plating > --- WEAPON (2) ------- Makeshift Hammer > --- INVENTORY (8) ---- Ion Engine Compact Wheel Small Laser Light Assault Rifle Peak State ------------ > --- POWER ------------ Light Ion Engine > --- PROPULSION ------- Light Treads Light Treads > --- UTILITY ---------- Small Storage Unit Improved Light Armor Plating > --- WEAPON ----------- Makeshift Hammer > --- INVENTORY -------- Ion Engine Compact Wheel Small Laser Light Assault Rifle [Rating: 11] Favorites ----------- Power Ion Engine Engine Ion Engine Propulsion Light Treads Treads Light Treads Wheel Compact Wheel Utility Small Storage Unit Storage Small Storage Unit Protection Improved Light Armor Plating Weapon Makeshift Hammer Energy Gun Medium Laser Ballistic Gun Light Assault Rifle Launcher Rocket Launcher Impact Weapon Makeshift Hammer Build | -11 -10 -10 ------- Run | Yrd Mat Min Slots Evolved . | . . . Power . | . . . Propulsion . | . . . Utility . | . . . Weapon . | . . . Parts Attached 15 | 6 . 9 Power 2 | 1 . 1 Engine 2 | 1 . 1 Core . | . . . Reactor . | . . . Propulsion 5 | 2 . 3 Treads 2 | . . 2 Leg . | . . . Wheel 3 | 2 . 1 Hover . | . . . Flight . | . . . Utility 2 | 1 . 1 Device . | . . . Storage 1 | 1 . . Processor . | . . . Hackware . | . . . Protection 1 | . . 1 Artifact . | . . . Weapon 6 | 2 . 4 Energy Gun 2 | 1 . 1 Energy Cannon . | . . . Ballistic Gun 1 | 1 . . Ballistic Cannon . | . . . Launcher 2 | . . 2 Special Weapon . | . . . Impact Weapon 1 | . . 1 Slashing Weapon . | . . . Piercing Weapon . | . . . Special Melee Weapon . | . . . Unidentified Prototypes . | . . . Parts Lost 6 | . . 6 Power 1 | . . 1 Propulsion 2 | . . 2 Utility . | . . . Weapon 3 | . . 3 Highest Loss Streak 2 | . . 2 To Critical Strikes . | . . . Average Backups 5 | 2 3 5 Power . | . 1 1 Propulsion 2 | 1 2 2 Utility . | . . . Weapon 2 | . . 2 Tool/Special . | . . . Unused Backups 2 | . . 2 Power 1 | . . 1 Propulsion 1 | . . 1 Utility . | . . . Weapon . | . . . Tool/Special . | . . . Average Slot Usage (%) 80 | . 85 80 Engine 11 | . 14 11 Treads 13 | . . 14 Wheel 13 | . 28 12 Storage 14 | . 14 14 Protection 6 | . . 6 Energy Gun 11 | . 14 11 Ballistic Gun 1 | . 14 1 Impact Weapon 6 | . . 7 Peak Build Rating 11 | 6 6 11 Average Rating 8 | 3 6 8 On Entrance 4 | . 6 6 Naked Turns . | . . . Heaviest Build 14 | 13 13 14 Greatest Support 40 | 32 32 40 Greatest Overweight (x) . | . . . Average Overweight (x) . | . . . Largest Inventory Capacity 8 | 8 8 8 Average Capacity 7 | 7 8 8 Most Carried 8 | 5 4 8 Average Carried 5 | 2 3 5 Final Capacity 8 | 8 8 8 Final Carried 4 | 3 4 4 Class Distribution -------------------- 100% | Mutant Dominant Class ---------------- Mutant | -10/Materials Mutant | -10/Mines Resources | -11 -10 -10 ----------- Run | Yrd Mat Min Matter Collected 487 | 232 . 255 Remotely . | . . . Salvage Created 355 | . . 355 Parts 7 | . . 7 Haulers Intercepted . | . . . Recyclers Shooed . | . . . Parts Field Recycled . | . . . Retrieved Matter . | . . . Parts Self-Destructed . | . . . Prevented . | . . . Kills | -11 -10 -10 ------- Run | Yrd Mat Min Combat Hostiles Destroyed 19 | . . 19 Melee 6 | . . 6 Guns 5 | . . 5 AOE 8 | . . 8 Classes Destroyed 3 | . . 3 Recycler 2 | . . 2 Grunt 2 | . . 2 Assembled 17 | . . 17 Best Kill Streak 11 | . . 11 Combat Bots Only 11 | . . 11 Max Kills in Single Turn 2 | . . 2 Gunslinging . | . . . Exploded 2 | . . 2 Melee 1 | . . 1 Uniques/NPCs Destroyed . | . . . Combat | -11 -10 -10 -------- Run | Yrd Mat Min Hostile Shots Fired 52 | . . 52 Missed 11 | . . 11 Hits 41 | . . 41 Melee 7 | . . 7 Projectile 34 | . . 34 Critical Strikes 1 | . . 1 Damage Taken 804 | . . 804 Core 257 | . . 257 Absorbed by Shields . | . . . Core Remaining (%) 100 | 100 . . Volleys Fired 28 | . 2 26 Largest 2 | . 2 2 Hottest 90 | . 70 90 Shots Fired 49 | . 4 45 Gun 37 | . 4 33 Cannon . | . . . Launcher 12 | . . 12 Special . | . . . Kinetic 5 | . 2 3 Thermal 32 | . 2 30 Explosive 12 | . . 12 Electromagnetic . | . . . Robot Hit Streak 14 | . 1 14 Robot Miss Streak 4 | . 3 4 Penetration Max . | . . . Secondary Targets . | . . . Shots Hit Robots 41 | . 1 40 Core Hits 26 | . 1 25 Critical Kills 2 | . . 2 Critical Parts Destroyed 2 | . . 2 Critical Strikes 4 | . . 4 Smash 4 | . . 4 Melee Attacks 15 | . . 15 Impact 15 | . . 15 Slashing . | . . . Piercing . | . . . Sneak Attacks 1 | . . 1 Combat Hostiles . | . . . Follow-up Attacks . | . . . Damage Inflicted 1592 | . 13 1579 Guns 269 | . 13 256 Cannons . | . . . Explosions 592 | . . 592 Melee 731 | . . 731 Ramming . | . . . Kinetic 6 | . . 6 Thermal 263 | . 13 250 Explosive 592 | . . 592 Electromagnetic . | . . . Impact 731 | . . 731 Slashing . | . . . Piercing . | . . . Highest Corruption . | . . . Average Corruption . | . . . Corruption Purged . | . . . Corruption Blocked . | . . . Overload Shots . | . . . Overflow Damage 274 | . . 274 Projectiles . | . . . Explosions 9 | . . 9 Melee 265 | . . 265 Knockbacks . | . . . Impact . | . . . Kinetic . | . . . Secondary . | . . . Self-Inflicted Damage 126 | . . 126 Shots 4 | . . 4 Rammed . | . . . Targets Rammed . | . . . Kicked . | . . . Crushed . | . . . Highest Temperature 210 | . 40 210 Average Temperature 75 | . 23 79 Received Heat Transfer 287 | . . 287 Siege Activations . | . . . Martial Activations . | . . . Shielding Activations . | . . . Robots Disrupted . | . . . Combat Hostiles . | . . . Robots Corrupted . | . . . Combat Hostiles . | . . . Parts Fried 2 | . . 2 Impact Corruptions 7 | . . 7 Robots Melted . | . . . Combat Hostiles . | . . . Parts Melted . | . . . Heat Transferred 730 | . 37 693 Parts Sabotaged . | . . . Parts Stolen . | . . . Parts Stripped . | . . . Power Chain Reactions . | . . . Alert | -11 -10 -10 ------- Run | Yrd Mat Min Maximum Alert Level . | . . . Low Security (%) 100 | 100 100 100 Level 1 . | . . . Level 2 . | . . . Level 3 . | . . . Level 4 . | . . . Level 5 . | . . . High Security . | . . . Max Security . | . . . Peak Influence 64 | . 14 64 Initial . | . . . Average 5 | . 4 5 Influence Increases 160 | . 14 146 Destroy 0b10 Robot/C 40 | . . 40 Destroy 0b10 Robot/NC 10 | . . 10 Destroy Leader 10 | . . 10 Successful Hack 14 | . 14 . Disable Machine 15 | . . 15 Destroy Structure 71 | . . 71 Influence Decreases 160 | . 14 146 Time Decay 140 | . 14 126 Lost Part 20 | . . 20 Squads Dispatched 1 | . 1 . Investigation . | . . . Extermination . | . . . Reinforcement 1 | . 1 . Assault . | . . . Garrison . | . . . Intercept . | . . . Searches Triggered . | . . . Construction Impeded . | . . . Haulers Reinforced . | . . . Active Scanning Responses . | . . . Cargo Convoy Interrupts . | . . . Stealth | -11 -10 -10 --------- Run | Yrd Mat Min Distress Signals 2 | . . 2 Communications Jammed . | . . . Distress Signals . | . . . Times Spotted 23 | . 1 22 Peak Tracking Total 4 | . 1 4 Tactical Retreats 3 | . . 3 Traps | -11 -10 -10 ------- Run | Yrd Mat Min Traps Triggered . | . . . Indirectly . | . . . Trap Hack Attempts . | . . . Triggered . | . . . Disarmed . | . . . Reprogrammed . | . . . Reused . | . . . Traps Extracted . | . . . Installed . | . . . Triggered . | . . . Machines | -11 -10 -10 ---------- Run | Yrd Mat Min Machines Disabled 1 | . . 1 Max in Single Turn 1 | . . 1 Machines Repaired . | . . . Machines Dismantled . | . . . Machines Sabotaged . | . . . Overloaded Fab Kills . | . . . Hacking | -11 -10 -10 --------- Run | Yrd Mat Min Machines Accessed 1 | . 1 . Terminals 1 | . 1 . Fabricators . | . . . Repair Stations . | . . . Recycling Units . | . . . Scanalyzers . | . . . Garrison Access . | . . . Total Hacks 3 | . 3 . Successful 1 | . 1 . Failed 2 | . 2 . Catastrophic . | . . . Database Lockouts . | . . . Manual 3 | . 3 . Terminals 3 | . 3 . Fabricators . | . . . Repair Stations . | . . . Recycling Units . | . . . Scanalyzers . | . . . Garrison Access . | . . . Terminal Hacks . | . . . Fabricator Hacks . | . . . Repair Station Hacks . | . . . Recycling Unit Hacks . | . . . Scanalyzer . | . . . Garrison Access Hacks . | . . . Unauthorized Hacks 1 | . 1 . Terminals 1 | . 1 . Botnet 1 | . 1 . Fabricators . | . . . Repair Stations . | . . . Recycling Units . | . . . Scanalyzers . | . . . Garrison Access . | . . . Data Cores Recovered . | . . . Used . | . . . Hacking Detections 1 | . 1 . Full Trace Events . | . . . Feedback Events . | . . . Feedback Blocked . | . . . Robot Schematics Acquired . | . . . Robots Built . | . . . Authchips . | . . . Time . | . . . Total Robot Build Rating . | . . . Part Schematics Acquired . | . . . Parts Built . | . . . Authchips . | . . . Time . | . . . Total Part Build Rating . | . . . Parts Repaired . | . . . Time . | . . . Parts Recycled . | . . . Recycled Matter . | . . . Retrieved Matter . | . . . Retrieved Components . | . . . Parts Scanalyzed . | . . . Part Schematics Acquired . | . . . Parts Damaged . | . . . Bothacking | -11 -10 -10 ------------ Run | Yrd Mat Min Used RIF Installer . | . . . Robots Hacked . | . . . Non-combat . | . . . Combat . | . . . Robot Hacks Applied . | . . . Relay Couplers Released . | . . . Fabnet Peak Effective % . | . . . Robots Rewired . | . . . Allies Hacked . | . . . Hacks Repelled . | . . . Allies | -11 -10 -10 -------- Run | Yrd Mat Min Total Allies 3 | . . 3 Largest Group 3 | . . 3 Highest-Rated Group 40 | . . 40 Highest-Rated Ally 16 | . . 16 Total Orders . | . . . Ally Attacks 2 | . . 2 Total Damage 29 | . . 29 Kills . | . . . Allies Corrupted . | . . . Allies Melted . | . . . Intel | -11 -10 -10 ------- Run | Yrd Mat Min Active Infowar (turns) . | . . . Robot Analysis Total . | . . . Derelict Logs Recovered 2 | . . 2 Drone Launches . | . . . Drone Recoveries . | . . . Exploration | -11 -10 -10 ------------- Run | Yrd Mat Min Turns Passed 1453 | 52 49 1352 Spaces Moved 979 | 43 43 893 Core 11 | 11 . . Treads 404 | . . 404 Legs . | . . . Wheels 564 | 32 43 489 Hover . | . . . Flight . | . . . Fastest Speed 50 | 50 100 100 Average Speed 124 | 87 100 127 Slowest Speed 160 | 100 100 160 Overloaded Moves . | . . . Propulsion Burnouts . | . . . Robots Hopped . | . . . Potential Cave-ins . | . . . Cave-ins Triggered . | . . . Exploration Rate (%) 38 | 3 13 98 Regions Visited 2 Branch Regions 1 Pre-discovered Areas 1 | . . 1 Known Exits Taken . | . . . Unknown Exits Taken 2 | 1 1 . Scrap Searched 2 | . . 2 Spaces Dug . | . . . Terrain Destroyed 102 | . . 102 Melee . | . . . Projectile . | . . . AOE 102 | . . 102 Terrain Rammed . | . . . Walls Destroyed . | . . . Machines Disabled . | . . . Actions | -11 -10 -10 --------- Run | Yrd Mat Min Total 1151 | 57 45 1049 Wait 94 | . . 94 Move 977 | 42 42 893 Hop . | . . . Pick Up 18 | 9 1 8 Fast Attach . | . . . Attach 12 | 6 . 6 Detach . | . . . Swap 5 | . . 5 Drop 2 | . . 2 Fire 28 | . 2 26 Melee 15 | . . 15 Ram . | . . . Kick . | . . . Crush . | . . . Escape Stasis . | . . . Rewire . | . . . Trap . | . . . Miscellaneous . | . . . Route ------- -11/Scrapyard -10/Materials -10/Mines (discovered 3 exits: *Mat x2 / [*Exi]) History --------- Turn | Location | Event 7 | -11/Scrapyard | Discovered new exit (range 16) 53 | -11/Scrapyard | Entered Materials 78 | -10/Materials | Discovered new exit (range 7) 102 | -10/Materials | Entered Mines 200 | -10/Mines | A weapon hastily lodged in a ceiling crevice suddenly fell to the ground 241 | -10/Mines | Discovered new exit (range 6) 271 | -10/Mines | Assisted by bots powering up and referring to "LRC-V3" 285 | -10/Mines | Identified exit to Materials 290 | -10/Mines | Assembled infested the area 309 | -10/Mines | Build established: Mutant 324 | -10/Mines | Lost 3 allies 420 | -10/Mines | Learned location of Storage (-8) 452 | -10/Mines | Deemed a non-threat by the Exiles lab entrance 453 | -10/Mines | Discovered new exit (range 5) 556 | -10/Mines | Received a Rocket Launcher from a helpful Derelict 719 | -10/Mines | Core integrity fell below 50% 770 | -10/Mines | Core integrity fell below 20% 791 | -10/Mines | Destroyed 11 combat bots 1454 | -10/Mines | Destroyed by G-47 Trooper with Particle Gun Last Messages --------------- 01038_ U-05 Engineer builds a Wall. 01042_ U-05 Engineer lays Concrete. 01059_ K-01 Serf collects debris. 01088_ Sneak attack on R-06 Scavenger. 01088_ Destroyed Lgt. Ion Engine. 01088_ Destroyed Tractor Beam. 01088_ R-06 Scavenger system corrupted by crushing effect. 01088_ Com. Wheel fried. 01088_ R-06 Scavenger destroyed. 01151_ Destroyed Asb. Heavy Rifle. 01151_ as-20526 system corrupted by crushing effect. 01161_ U-05 Engineer builds a Wall. 01228_ as-20526 suffers critical hit (Smash). 01228_ Destroyed Asb. Hover Unit. 01228_ as-20526 system corrupted by crushing effect. 01228_ as-20526 destroyed. 01232_ K-01 Serf collects debris. Map ----- +----------------------------------------------------+ | ##?????????## ###### %= "" ### ####### # ## | | #?????????# ! ! """ #?# #?####### ### | | ##???????## % "" #?#=#???#=%= #?? | | ##?????## *### ##! #?#%#???#|#####?? | | #????## ##### ##% ## ##?#=#???# #?????? | | #???## #### # ##*!### ##??#|##### #?????? | | #???# ##?##### ##=%######???# !#?????? | | #??## ##??# ## ##???????#######%#?????? | | #### #???# ###### ##??????### # # #?????? | | #???# #?### *##?????#!%|= ####### | | ## ##???# ### !%=##????##%####### | | ### #????# ## ! = ##????#!#?????# #### | | %* #????# % %= #?####%#?????# #??? | | ! #????##### % #?#*%%=#?????# #??? | | ## ##### ##????????## !!##?#=####?????# #?## | | ?# #???# %#????????##### =%##?#%#????????# ### | | ## ##??# !#????????# =### |*%###!#????????# !%=* | | ##?# #????????# |%#### = ##=#????????#####% | | #?# ######???# =#??##%! !*%%##???????????#= | | ### ##### ##??# =%%|!!#???????????# | | * ## # #??##=== !%=#???????????# | | % ###### # = #???##%% %! #??####?????# | | #????# # !!=!#????#%% =##### ######## | | ### #????# # ===*#????#= !%### # | | ##?### #????# #!! %!%!%###### %#### """ # | | ?????# #????# #*%=<%=!%%@%= gk#??# """ ##### # | | ?????# #????# %!* ====###### #### """ #???# # | | ###### #????## #= =!|*#????# % ##???# | | #?????# ##########????# ##????# # | | #######?????# #?????????????######### ##?????# # | | #???????????# #?????????????????????# ##??????# # | | #???????????# #?????????????????????# #???????# # | | #???????????# #?????????????????????# #???????# # | | #???????????#!#?????????????????????# #???????# # | | #?########??#%#?????????????????????# #???????# # | | #?# ##?#!#?????????????????????# #???????# # | | #?# #### #?????????????????????# #???????# | | ### ## #?????????????????????# #???????### | | ## ###?????????????????????# #?????????? | | #### % ##??????????????????????# #?????????? | | ???# #####??????????????????????# #?????????? | | ???######## #????####?????????###### #?????????? | | ?????## # ##???## ##????????# ########### | | ?????#### ##????# #????????# # ## | | ???????# ##????## ########## # ####### ###### | | ????????#####??### # #?????# #????? | | ??????????????## ############ ###???# #????? | | ?????????????## ##??????????# ##??# #????? | | ?????????????# ###???????????### #??# ###### | | ?????????????### ###??????????????## ##??# | +----------------------------------------------------+ Best States ------------- Heat Dissipation 25 Energy Generation 10 Energy Capacity 250 Matter Stores 300 Matter Capacity 300 Sight Range 16 Terrain Scan Density 10 Armor Coverage 150 Evasion (%) 50 Recoil Reduction 2 Item Schematics ----------------- None Robot Schematics ------------------ None Fabricated ------------ Nothing Repaired ---------- Nothing Alien Tech Used ----------------- None Achievements -------------- Exterminator Challenges ------------ None Game ------ Seed HybridAdvancedCoupler Manual? 0 Play Time 00:10:58 Cumulative 56.0 hours Start 2025.05.30 @ 12:15:59 End 2025.05.30 @ 12:24:02 Sessions 1 Manual Loads 0 Difficulty Rogue Special Mode None Game No. 57 Rogue 57 Adventurer 0 Explorer 0 Win Type - Total 2 Types 2/0/0/0/0/0/0/0/0/0 Lore% 39 Gallery% 32 Achievement% 34 Wizard Run 0 Options --------- Layout 1 ASCII 0 Keyboard 0 Movement Mouse Keybinds 0 Fullscreen 1 Font 24/Smallcaps Map View 50x35 Zoom Use 0% Tactical HUD 1 Map Filters NONE Filters NONE Steam 1 RUN: ece67be6-7484-4041-bd1d-e30430e4017c